[Event "Titled Tuesday Blitz December 7 2021"]
[White "Myshakov, Fyodor"]
[Black "Korchmar, Vasiliy"]
[WhiteFideId "14111284"]
[BlackFideId "24131750"]
[WhiteElo "2310"]
[BlackElo "2370"]
[Result "1-0"]
[Round "04"]
[TimeControl "180+1"]
[Date "2021.12.07"]
[WhiteClock "0:00:11"]
[BlackClock "0:00:01"]

1. c4 {[%clk 0:03:00]}  c6 {[%clk 0:02:58]} 2. Nc3 {[%clk 0:03:00]}  d5 {[%clk 0:02:59]} 3. cxd5 {[%clk 0:03:01]}  cxd5 {[%clk 0:03:00]} 4. d4 {[%clk 0:03:01]}  Nf6 {[%clk 0:03:00]} 5. Nf3 {[%clk 0:03:02]}  Nc6 {[%clk 0:03:00]} 6. Bf4 {[%clk 0:03:02]}  Bf5 {[%clk 0:02:52]} 7. e3 {[%clk 0:03:03]}  e6 {[%clk 0:02:51]} 8. Bb5 {[%clk 0:03:03]}  Be7 {[%clk 0:02:39]} 9. Ne5 {[%clk 0:02:57]}  Qb6 {[%clk 0:02:37]} 10. Qa4 {[%clk 0:02:45]}  O-O {[%clk 0:02:30]} 11. Bxc6 {[%clk 0:02:30]}  Qxb2 {[%clk 0:02:26]} 12. O-O {[%clk 0:02:17]}  bxc6 {[%clk 0:01:56]} 13. Nxc6 {[%clk 0:02:16]}  Ba3 {[%clk 0:01:47]} 14. Nb5 {[%clk 0:01:46]}  Bc2 {[%clk 0:01:41]} 15. Qxa3 {[%clk 0:01:13]}  Qxb5 {[%clk 0:01:41]} 16. Ne5 {[%clk 0:01:07]}  a5 {[%clk 0:01:10]} 17. Rac1 {[%clk 0:01:05]}  Rac8 {[%clk 0:01:10]} 18. h3 {[%clk 0:00:59]}  Ne4 {[%clk 0:01:08]} 19. Rfe1 {[%clk 0:00:49]}  Qb4 {[%clk 0:00:46]} 20. Qxb4 {[%clk 0:00:45]}  axb4 {[%clk 0:00:47]} 21. Re2 {[%clk 0:00:43]}  Ba4 {[%clk 0:00:19]} 22. Rxc8 {[%clk 0:00:42]}  Rxc8 {[%clk 0:00:20]} 23. Rb2 {[%clk 0:00:41]}  g5 {[%clk 0:00:20]} 24. Bg3 {[%clk 0:00:37]}  h5 {[%clk 0:00:16]} 25. h4 {[%clk 0:00:37]}  g4 {[%clk 0:00:14]} 26. Rxb4 {[%clk 0:00:35]}  Rc1+ {[%clk 0:00:14]} 27. Kh2 {[%clk 0:00:35]}  Nd2 {[%clk 0:00:14]} 28. Bf4 {[%clk 0:00:20]}  Nf1+ {[%clk 0:00:12]} 29. Kg1 {[%clk 0:00:21]}  Ng3+ {[%clk 0:00:03]} 30. Kh2 {[%clk 0:00:20]}  Nf1+ {[%clk 0:00:03]} 31. Kg1 {[%clk 0:00:21]}  Bc2 {[%clk 0:00:02]} 32. Rb8+ {[%clk 0:00:17]}  Kg7 {[%clk 0:00:02]} 33. e4 {[%clk 0:00:12]}  Ng3+ {[%clk 0:00:01]} 34. Bxc1 {[%clk 0:00:11]} 1-0


[Site "https://www.chess.com"]

[Event "Titled Tuesday Blitz December 7 2021"]
[White "Nazaretyan, Tigran"]
[Black "Schuster, Karsten"]
[WhiteFideId "24162345"]
[BlackFideId "4611071"]
[WhiteElo "2192"]
[BlackElo "2367"]
[Result "1-0"]
[Round "04"]
[TimeControl "180+1"]
[Date "2021.12.07"]
[WhiteClock "0:00:43"]
[BlackClock "0:00:08"]

1. d4 {[%clk 0:03:00]}  d5 {[%clk 0:02:58]} 2. c4 {[%clk 0:03:00]}  c6 {[%clk 0:02:58]} 3. Nf3 {[%clk 0:03:00]}  Nf6 {[%clk 0:02:58]} 4. Nc3 {[%clk 0:03:01]}  a6 {[%clk 0:02:58]} 5. e3 {[%clk 0:02:59]}  Bf5 {[%clk 0:02:58]} 6. Bd3 {[%clk 0:02:54]}  Bxd3 {[%clk 0:02:57]} 7. Qxd3 {[%clk 0:02:55]}  e6 {[%clk 0:02:57]} 8. a3 {[%clk 0:02:53]}  b5 {[%clk 0:02:54]} 9. c5 {[%clk 0:02:52]}  a5 {[%clk 0:02:54]} 10. e4 {[%clk 0:02:50]}  b4 {[%clk 0:02:53]} 11. axb4 {[%clk 0:02:49]}  Na6 {[%clk 0:02:44]} 12. b5 {[%clk 0:02:33]}  Nb4 {[%clk 0:02:44]} 13. Qe2 {[%clk 0:02:33]}  dxe4 {[%clk 0:02:43]} 14. Nxe4 {[%clk 0:02:30]}  Qd5 {[%clk 0:02:20]} 15. Nc3 {[%clk 0:02:13]}  Qb3 {[%clk 0:01:59]} 16. O-O {[%clk 0:01:51]}  Nc2 {[%clk 0:01:59]} 17. Nd2 {[%clk 0:01:45]}  Qb4 {[%clk 0:01:50]} 18. Ra4 {[%clk 0:01:42]}  Nxd4 {[%clk 0:01:40]} 19. Qd3 {[%clk 0:01:38]}  Rd8 {[%clk 0:00:49]} 20. Rxb4 {[%clk 0:01:34]}  axb4 {[%clk 0:00:49]} 21. Nce4 {[%clk 0:01:33]}  cxb5 {[%clk 0:00:45]} 22. Nxf6+ {[%clk 0:01:22]}  gxf6 {[%clk 0:00:45]} 23. Ne4 {[%clk 0:01:23]}  Be7 {[%clk 0:00:45]} 24. Nd6+ {[%clk 0:01:21]}  Bxd6 {[%clk 0:00:45]} 25. Qxd4 {[%clk 0:01:19]}  Be5 {[%clk 0:00:35]} 26. Qxb4 {[%clk 0:01:16]}  O-O {[%clk 0:00:35]} 27. Bh6 {[%clk 0:01:14]}  Rd4 {[%clk 0:00:31]} 28. Qxb5 {[%clk 0:01:11]}  Rfd8 {[%clk 0:00:30]} 29. g3 {[%clk 0:01:00]}  R4d5 {[%clk 0:00:15]} 30. b4 {[%clk 0:00:57]}  Bd4 {[%clk 0:00:15]} 31. Qc4 {[%clk 0:00:51]}  Rf5 {[%clk 0:00:14]} 32. Be3 {[%clk 0:00:49]}  Be5 {[%clk 0:00:09]} 33. g4 {[%clk 0:00:45]}  Rf3 {[%clk 0:00:08]} 34. Kg2 {[%clk 0:00:43]} 1-0


[Site "https://www.chess.com"]

[Event "Titled Tuesday Blitz December 7 2021"]
[White "Nazari, Arad"]
[Black "Bloomer, Josh"]
[WhiteFideId "12577324"]
[BlackFideId "2020416"]
[WhiteElo "2119"]
[BlackElo "2421"]
[Result "1/2-1/2"]
[Round "04"]
[TimeControl "180+1"]
[Date "2021.12.07"]
[WhiteClock "0:00:14"]
[BlackClock "0:00:41"]

1. e4 {[%clk 0:03:00]}  c5 {[%clk 0:03:00]} 2. Nf3 {[%clk 0:03:00]}  d6 {[%clk 0:03:00]} 3. Bb5+ {[%clk 0:03:00]}  Nd7 {[%clk 0:03:00]} 4. d4 {[%clk 0:02:59]}  cxd4 {[%clk 0:02:59]} 5. Qxd4 {[%clk 0:03:00]}  a6 {[%clk 0:02:59]} 6. Bxd7+ {[%clk 0:03:00]}  Bxd7 {[%clk 0:02:59]} 7. O-O {[%clk 0:03:00]}  e5 {[%clk 0:02:55]} 8. Qd3 {[%clk 0:03:00]}  h6 {[%clk 0:02:55]} 9. c4 {[%clk 0:03:00]}  Nf6 {[%clk 0:02:52]} 10. Nc3 {[%clk 0:03:00]}  Be7 {[%clk 0:02:50]} 11. b3 {[%clk 0:03:00]}  O-O {[%clk 0:02:17]} 12. Rd1 {[%clk 0:02:50]}  b5 {[%clk 0:02:10]} 13. a4 {[%clk 0:02:47]}  bxc4 {[%clk 0:02:01]} 14. bxc4 {[%clk 0:02:42]}  Rc8 {[%clk 0:02:01]} 15. Ba3 {[%clk 0:02:40]}  Be6 {[%clk 0:02:01]} 16. c5 {[%clk 0:02:28]}  dxc5 {[%clk 0:01:52]} 17. Nxe5 {[%clk 0:02:26]}  Qc7 {[%clk 0:01:46]} 18. Nc4 {[%clk 0:02:15]}  Rfd8 {[%clk 0:01:45]} 19. Qe2 {[%clk 0:02:02]}  Rd4 {[%clk 0:01:44]} 20. Nd5 {[%clk 0:01:35]}  Bxd5 {[%clk 0:01:33]} 21. exd5 {[%clk 0:01:35]}  Nxd5 {[%clk 0:01:32]} 22. Rdc1 {[%clk 0:01:32]}  Nf4 {[%clk 0:01:25]} 23. Qf3 {[%clk 0:01:21]}  Nd3 {[%clk 0:01:02]} 24. Rc3 {[%clk 0:01:08]}  Rxc4 {[%clk 0:00:56]} 25. Rxc4 {[%clk 0:01:06]}  Ne5 {[%clk 0:00:57]} 26. Qf4 {[%clk 0:01:03]}  Nxc4 {[%clk 0:00:56]} 27. Qxc4 {[%clk 0:01:04]}  Bf6 {[%clk 0:00:53]} 28. Rd1 {[%clk 0:01:01]}  Bd4 {[%clk 0:00:54]} 29. Qxa6 {[%clk 0:00:55]}  Rd8 {[%clk 0:00:50]} 30. Qe2 {[%clk 0:00:41]}  Qf4 {[%clk 0:00:45]} 31. g3 {[%clk 0:00:34]}  Qxf2+ {[%clk 0:00:41]} 32. Qxf2 {[%clk 0:00:34]}  Bxf2+ {[%clk 0:00:42]} 33. Kxf2 {[%clk 0:00:35]}  Rxd1 {[%clk 0:00:43]} 34. Bxc5 {[%clk 0:00:35]}  Ra1 {[%clk 0:00:43]} 35. Be3 {[%clk 0:00:34]}  Rxa4 {[%clk 0:00:43]} 36. Kf3 {[%clk 0:00:35]}  Ra3 {[%clk 0:00:43]} 37. Ke4 {[%clk 0:00:35]}  Rxe3+ {[%clk 0:00:43]} 38. Kxe3 {[%clk 0:00:35]}  Kf8 {[%clk 0:00:44]} 39. Kf4 {[%clk 0:00:36]}  Ke7 {[%clk 0:00:45]} 40. Ke5 {[%clk 0:00:36]}  g6 {[%clk 0:00:45]} 41. g4 {[%clk 0:00:36]}  f6+ {[%clk 0:00:46]} 42. Kd5 {[%clk 0:00:37]}  Kd7 {[%clk 0:00:45]} 43. h4 {[%clk 0:00:35]}  Ke7 {[%clk 0:00:43]} 44. Kd4 {[%clk 0:00:35]}  Ke6 {[%clk 0:00:43]} 45. Ke4 {[%clk 0:00:35]}  Kd6 {[%clk 0:00:44]} 46. Kd4 {[%clk 0:00:35]}  Ke6 {[%clk 0:00:44]} 47. Ke4 {[%clk 0:00:35]}  f5+ {[%clk 0:00:44]} 48. Kf4 {[%clk 0:00:36]}  Kf6 {[%clk 0:00:41]} 49. h5 {[%clk 0:00:27]}  g5+ {[%clk 0:00:41]} 50. Kf3 {[%clk 0:00:27]}  fxg4+ {[%clk 0:00:41]} 51. Kxg4 {[%clk 0:00:28]}  Ke5 {[%clk 0:00:42]} 52. Kf3 {[%clk 0:00:28]}  Kf5 {[%clk 0:00:42]} 53. Kg3 {[%clk 0:00:28]}  Ke4 {[%clk 0:00:42]} 54. Kg4 {[%clk 0:00:28]}  Ke3 {[%clk 0:00:42]} 55. Kg3 {[%clk 0:00:28]}  Ke4 {[%clk 0:00:42]} 56. Kg4 {[%clk 0:00:29]}  Ke5 {[%clk 0:00:43]} 57. Kf3 {[%clk 0:00:25]}  Kf5 {[%clk 0:00:44]} 58. Kg3 {[%clk 0:00:26]}  Kf6 {[%clk 0:00:41]} 59. Kg4 {[%clk 0:00:22]}  Ke6 {[%clk 0:00:41]} 60. Kg3 {[%clk 0:00:20]}  Kf5 {[%clk 0:00:42]} 61. Kh3 {[%clk 0:00:15]}  Ke4 {[%clk 0:00:41]} 62. Kg4 {[%clk 0:00:14]} 1/2-1/2


[Site "https://www.chess.com"]

[Event "Titled Tuesday Blitz December 7 2021"]
[White "Nilsen, Tobias Lang"]
[Black "Nevednichy, Vladislav"]
[WhiteFideId "1521624"]
[BlackFideId "1205730"]
[WhiteElo "1979"]
[BlackElo "2379"]
[Result "0-1"]
[Round "04"]
[TimeControl "180+1"]
[Date "2021.12.07"]
[WhiteClock "0:00:01"]
[BlackClock "0:00:29"]

1. e4 {[%clk 0:03:00]}  e6 {[%clk 0:02:57]} 2. d4 {[%clk 0:03:00]}  d5 {[%clk 0:02:58]} 3. Nd2 {[%clk 0:03:00]}  Nc6 {[%clk 0:02:57]} 4. Ngf3 {[%clk 0:03:00]}  Nf6 {[%clk 0:02:58]} 5. e5 {[%clk 0:03:01]}  Nd7 {[%clk 0:02:58]} 6. Nb3 {[%clk 0:03:00]}  a5 {[%clk 0:02:57]} 7. a4 {[%clk 0:02:58]}  b6 {[%clk 0:02:57]} 8. c3 {[%clk 0:02:53]}  Ba6 {[%clk 0:02:55]} 9. Bb5 {[%clk 0:02:53]}  Ncb8 {[%clk 0:02:52]} 10. Qe2 {[%clk 0:02:38]}  Be7 {[%clk 0:02:51]} 11. h4 {[%clk 0:02:36]}  h6 {[%clk 0:02:51]} 12. Rh3 {[%clk 0:02:33]}  Qc8 {[%clk 0:02:33]} 13. Rg3 {[%clk 0:02:32]}  Bf8 {[%clk 0:02:32]} 14. Nfd2 {[%clk 0:02:07]}  Bxb5 {[%clk 0:02:29]} 15. axb5 {[%clk 0:02:07]}  c6 {[%clk 0:02:28]} 16. c4 {[%clk 0:01:46]}  dxc4 {[%clk 0:02:22]} 17. Qxc4 {[%clk 0:01:38]}  Qb7 {[%clk 0:02:21]} 18. Rc3 {[%clk 0:01:19]}  c5 {[%clk 0:02:09]} 19. dxc5 {[%clk 0:01:18]}  Nxc5 {[%clk 0:02:02]} 20. Nxc5 {[%clk 0:01:17]}  Bxc5 {[%clk 0:02:01]} 21. Ne4 {[%clk 0:01:18]}  Nd7 {[%clk 0:02:00]} 22. Be3 {[%clk 0:01:03]}  O-O {[%clk 0:02:00]} 23. Bxc5 {[%clk 0:00:44]}  bxc5 {[%clk 0:01:57]} 24. Nf6+ {[%clk 0:00:27]}  gxf6 {[%clk 0:01:40]} 25. Rg3+ {[%clk 0:00:27]}  Kh7 {[%clk 0:01:36]} 26. exf6 {[%clk 0:00:25]}  Nxf6 {[%clk 0:01:18]} 27. O-O-O {[%clk 0:00:19]}  Qe4 {[%clk 0:01:14]} 28. Qc3 {[%clk 0:00:19]}  Qf4+ {[%clk 0:01:08]} 29. Kb1 {[%clk 0:00:19]}  Rad8 {[%clk 0:01:02]} 30. Re1 {[%clk 0:00:13]}  Rd4 {[%clk 0:00:51]} 31. Rf3 {[%clk 0:00:13]}  Qxh4 {[%clk 0:00:50]} 32. Rh3 {[%clk 0:00:13]}  Qg5 {[%clk 0:00:47]} 33. Qc2+ {[%clk 0:00:13]}  Qf5 {[%clk 0:00:46]} 34. Qxf5+ {[%clk 0:00:13]}  exf5 {[%clk 0:00:46]} 35. Reh1 {[%clk 0:00:11]}  h5 {[%clk 0:00:44]} 36. Ra3 {[%clk 0:00:10]}  Rb8 {[%clk 0:00:42]} 37. Rxa5 {[%clk 0:00:09]}  Rb4 {[%clk 0:00:42]} 38. Ra6 {[%clk 0:00:10]}  Kg7 {[%clk 0:00:42]} 39. Rh3 {[%clk 0:00:08]}  R8xb5 {[%clk 0:00:40]} 40. Rg3+ {[%clk 0:00:09]}  Rg4 {[%clk 0:00:40]} 41. Rf3 {[%clk 0:00:07]}  c4 {[%clk 0:00:39]} 42. g3 {[%clk 0:00:05]}  f4 {[%clk 0:00:38]} 43. gxf4 {[%clk 0:00:05]}  Ne4 {[%clk 0:00:35]} 44. Re3 {[%clk 0:00:04]}  Nxf2 {[%clk 0:00:33]} 45. Rf3 {[%clk 0:00:02]}  Nd3 {[%clk 0:00:32]} 46. Kc2 {[%clk 0:00:02]}  Rb3 {[%clk 0:00:31]} 47. Re3 {[%clk 0:00:02]}  Rg2+ {[%clk 0:00:30]} 48. Kd1 {[%clk 0:00:02]}  Nxb2+ {[%clk 0:00:30]} 49. Kc1 {[%clk 0:00:03]}  Rxe3 {[%clk 0:00:29]} 50. Re6 {[%clk 0:00:01]}  Rxe6 {[%clk 0:00:28]} 51. f5 {[%clk 0:00:01]}  Re1# {[%clk 0:00:29]} 0-1


[Site "https://www.chess.com"]

[Event "Titled Tuesday Blitz December 7 2021"]
[White "Pacheco Lugo, Alejandro Jose"]
[Black "Atakishiyev, Elmar"]
[WhiteFideId "3903745"]
[BlackFideId "13410547"]
[WhiteElo "2125"]
[BlackElo "2088"]
[Result "1/2-1/2"]
[Round "04"]
[TimeControl "180+1"]
[Date "2021.12.07"]
[WhiteClock "0:00:26"]
[BlackClock "0:01:21"]

1. e4 {[%clk 0:03:00]}  e6 {[%clk 0:02:57]} 2. d4 {[%clk 0:03:00]}  d5 {[%clk 0:02:57]} 3. Bd3 {[%clk 0:03:01]}  c5 {[%clk 0:02:57]} 4. exd5 {[%clk 0:03:00]}  exd5 {[%clk 0:02:58]} 5. Nf3 {[%clk 0:03:00]}  Nc6 {[%clk 0:02:58]} 6. O-O {[%clk 0:02:59]}  Nf6 {[%clk 0:02:58]} 7. Re1+ {[%clk 0:02:58]}  Be7 {[%clk 0:02:59]} 8. dxc5 {[%clk 0:02:59]}  O-O {[%clk 0:02:59]} 9. Bg5 {[%clk 0:02:59]}  Bxc5 {[%clk 0:02:58]} 10. Nc3 {[%clk 0:02:48]}  Be6 {[%clk 0:02:56]} 11. a3 {[%clk 0:02:39]}  h6 {[%clk 0:02:55]} 12. Bh4 {[%clk 0:02:36]}  Re8 {[%clk 0:02:55]} 13. Qd2 {[%clk 0:02:35]}  Rc8 {[%clk 0:02:49]} 14. Rad1 {[%clk 0:02:35]}  a6 {[%clk 0:02:47]} 15. h3 {[%clk 0:02:24]}  Be7 {[%clk 0:02:37]} 16. Ne2 {[%clk 0:02:08]}  Ne4 {[%clk 0:02:27]} 17. Bxe4 {[%clk 0:02:07]}  dxe4 {[%clk 0:02:25]} 18. Qxd8 {[%clk 0:02:06]}  Rcxd8 {[%clk 0:02:24]} 19. Rxd8 {[%clk 0:02:04]}  Rxd8 {[%clk 0:02:23]} 20. Bxe7 {[%clk 0:02:03]}  Nxe7 {[%clk 0:02:22]} 21. Nfd4 {[%clk 0:01:58]}  Bc4 {[%clk 0:02:22]} 22. b3 {[%clk 0:01:52]}  Bxe2 {[%clk 0:02:22]} 23. Nxe2 {[%clk 0:01:53]}  Rd2 {[%clk 0:02:22]} 24. Ng3 {[%clk 0:01:36]}  f5 {[%clk 0:02:22]} 25. Re2 {[%clk 0:01:36]}  Rd1+ {[%clk 0:02:20]} 26. Kh2 {[%clk 0:01:36]}  Nd5 {[%clk 0:02:20]} 27. Nxf5 {[%clk 0:01:29]}  Nf6 {[%clk 0:01:55]} 28. Ng3 {[%clk 0:01:23]}  Rd4 {[%clk 0:01:53]} 29. c3 {[%clk 0:01:14]}  Rd3 {[%clk 0:01:52]} 30. Nxe4 {[%clk 0:01:15]}  Nxe4 {[%clk 0:01:51]} 31. Rxe4 {[%clk 0:01:16]}  Rxc3 {[%clk 0:01:51]} 32. Rb4 {[%clk 0:01:16]}  b5 {[%clk 0:01:48]} 33. a4 {[%clk 0:01:16]}  bxa4 {[%clk 0:01:47]} 34. bxa4 {[%clk 0:01:12]}  Ra3 {[%clk 0:01:48]} 35. f4 {[%clk 0:01:06]}  Kf7 {[%clk 0:01:47]} 36. g4 {[%clk 0:01:05]}  a5 {[%clk 0:01:45]} 37. Rc4 {[%clk 0:01:04]}  g6 {[%clk 0:01:43]} 38. Kg2 {[%clk 0:01:04]}  Ke6 {[%clk 0:01:43]} 39. Rd4 {[%clk 0:01:02]}  Ra2+ {[%clk 0:01:41]} 40. Kg3 {[%clk 0:01:02]}  Ra3+ {[%clk 0:01:42]} 41. Kh4 {[%clk 0:01:02]}  Kf6 {[%clk 0:01:42]} 42. Rd6+ {[%clk 0:00:59]}  Kg7 {[%clk 0:01:40]} 43. Rd4 {[%clk 0:00:59]}  Kf6 {[%clk 0:01:40]} 44. g5+ {[%clk 0:00:43]}  hxg5+ {[%clk 0:01:40]} 45. fxg5+ {[%clk 0:00:44]}  Ke5 {[%clk 0:01:40]} 46. Rc4 {[%clk 0:00:33]}  Kd5 {[%clk 0:01:40]} 47. Rf4 {[%clk 0:00:32]}  Ke5 {[%clk 0:01:39]} 48. Rf6 {[%clk 0:00:26]}  Rxa4+ {[%clk 0:01:35]} 49. Kg3 {[%clk 0:00:26]}  Ra3+ {[%clk 0:01:36]} 50. Kg4 {[%clk 0:00:26]}  Ra4+ {[%clk 0:01:35]} 51. Kg3 {[%clk 0:00:26]}  Ra3+ {[%clk 0:01:27]} 52. Kg4 {[%clk 0:00:26]}  Ra4+ {[%clk 0:01:21]} 53. Kg3 {[%clk 0:00:26]} 1/2-1/2


[Site "https://www.chess.com"]

[Event "Titled Tuesday Blitz December 7 2021"]
[White "Perez Gormaz, Matias"]
[Black "Ozen, Bahadir"]
[WhiteFideId "3406342"]
[BlackFideId "6337058"]
[WhiteElo "2352"]
[BlackElo "2503"]
[Result "0-1"]
[Round "04"]
[TimeControl "180+1"]
[Date "2021.12.07"]
[WhiteClock "0:00:03"]
[BlackClock "0:00:34"]

1. e4 {[%clk 0:03:00]}  c6 {[%clk 0:03:00]} 2. d4 {[%clk 0:03:00]}  d5 {[%clk 0:03:00]} 3. e5 {[%clk 0:03:01]}  Bf5 {[%clk 0:03:00]} 4. h4 {[%clk 0:03:02]}  h5 {[%clk 0:03:00]} 5. Bd3 {[%clk 0:03:02]}  Bxd3 {[%clk 0:03:00]} 6. Qxd3 {[%clk 0:03:03]}  e6 {[%clk 0:03:00]} 7. Nf3 {[%clk 0:03:02]}  c5 {[%clk 0:02:53]} 8. Bg5 {[%clk 0:02:35]}  Qb6 {[%clk 0:02:48]} 9. c4 {[%clk 0:02:36]}  Nc6 {[%clk 0:02:43]} 10. O-O {[%clk 0:02:28]}  dxc4 {[%clk 0:02:22]} 11. Qxc4 {[%clk 0:02:27]}  cxd4 {[%clk 0:02:22]} 12. Nbd2 {[%clk 0:02:22]}  Nge7 {[%clk 0:02:21]} 13. Bxe7 {[%clk 0:01:50]}  Bxe7 {[%clk 0:02:20]} 14. Ne4 {[%clk 0:01:50]}  O-O {[%clk 0:02:03]} 15. a3 {[%clk 0:01:50]}  Rac8 {[%clk 0:02:01]} 16. Qd3 {[%clk 0:01:50]}  Qa6 {[%clk 0:02:02]} 17. Qd2 {[%clk 0:01:44]}  d3 {[%clk 0:01:39]} 18. Rfd1 {[%clk 0:01:37]}  Qb5 {[%clk 0:01:25]} 19. Qxd3 {[%clk 0:01:26]}  Qxd3 {[%clk 0:01:24]} 20. Rxd3 {[%clk 0:01:26]}  Rfd8 {[%clk 0:01:24]} 21. Rad1 {[%clk 0:01:26]}  Rxd3 {[%clk 0:01:19]} 22. Rxd3 {[%clk 0:01:27]}  Rd8 {[%clk 0:01:20]} 23. Rxd8+ {[%clk 0:01:27]}  Bxd8 {[%clk 0:01:21]} 24. Nd6 {[%clk 0:01:24]}  b6 {[%clk 0:01:18]} 25. Nb5 {[%clk 0:00:45]}  a6 {[%clk 0:01:11]} 26. Nbd4 {[%clk 0:00:06]}  Nxd4 {[%clk 0:01:09]} 27. Nxd4 {[%clk 0:00:07]}  Bxh4 {[%clk 0:01:09]} 28. Kf1 {[%clk 0:00:07]}  Bd8 {[%clk 0:01:04]} 29. Ke2 {[%clk 0:00:07]}  Bc7 {[%clk 0:00:59]} 30. f4 {[%clk 0:00:06]}  Kf8 {[%clk 0:01:00]} 31. Kd3 {[%clk 0:00:06]}  Ke7 {[%clk 0:01:00]} 32. Ke4 {[%clk 0:00:07]}  g6 {[%clk 0:01:00]} 33. Nf3 {[%clk 0:00:06]}  Bd8 {[%clk 0:00:59]} 34. Nd4 {[%clk 0:00:07]}  Kd7 {[%clk 0:00:59]} 35. b3 {[%clk 0:00:05]}  Be7 {[%clk 0:00:58]} 36. a4 {[%clk 0:00:05]}  Bc5 {[%clk 0:00:58]} 37. Nf3 {[%clk 0:00:05]}  Be7 {[%clk 0:00:55]} 38. Nd4 {[%clk 0:00:05]}  Kc7 {[%clk 0:00:55]} 39. Kd3 {[%clk 0:00:05]}  Bf8 {[%clk 0:00:45]} 40. Kc4 {[%clk 0:00:05]}  Bh6 {[%clk 0:00:46]} 41. Ne2 {[%clk 0:00:03]}  Kc6 {[%clk 0:00:46]} 42. Nd4+ {[%clk 0:00:03]}  Kd7 {[%clk 0:00:46]} 43. Ne2 {[%clk 0:00:04]}  g5 {[%clk 0:00:47]} 44. fxg5 {[%clk 0:00:03]}  Bxg5 {[%clk 0:00:48]} 45. Nd4 {[%clk 0:00:04]}  Bf4 {[%clk 0:00:46]} 46. Nf3 {[%clk 0:00:04]}  Kc6 {[%clk 0:00:46]} 47. Nd4+ {[%clk 0:00:04]}  Kb7 {[%clk 0:00:46]} 48. Nf3 {[%clk 0:00:05]}  Kc7 {[%clk 0:00:46]} 49. Kd4 {[%clk 0:00:05]}  Bh6 {[%clk 0:00:44]} 50. Ke4 {[%clk 0:00:05]}  Kc6 {[%clk 0:00:44]} 51. b4 {[%clk 0:00:05]}  b5 {[%clk 0:00:40]} 52. Nd4+ {[%clk 0:00:06]}  Kb6 {[%clk 0:00:40]} 53. axb5 {[%clk 0:00:06]}  axb5 {[%clk 0:00:41]} 54. Nb3 {[%clk 0:00:06]}  Bf8 {[%clk 0:00:39]} 55. Nd2 {[%clk 0:00:04]}  Bxb4 {[%clk 0:00:39]} 56. Nf3 {[%clk 0:00:05]}  Be7 {[%clk 0:00:39]} 57. Kd4 {[%clk 0:00:05]}  Kc6 {[%clk 0:00:39]} 58. Nd2 {[%clk 0:00:05]}  Bc5+ {[%clk 0:00:38]} 59. Kd3 {[%clk 0:00:05]}  Kd5 {[%clk 0:00:38]} 60. Nf3 {[%clk 0:00:05]}  Be7 {[%clk 0:00:37]} 61. Kc3 {[%clk 0:00:05]}  Ke4 {[%clk 0:00:35]} 62. Kd2 {[%clk 0:00:03]}  h4 {[%clk 0:00:35]} 63. Ke2 {[%clk 0:00:03]}  b4 {[%clk 0:00:35]} 64. Nd2+ {[%clk 0:00:04]}  Kxe5 {[%clk 0:00:35]} 65. Kd3 {[%clk 0:00:04]}  Kf4 {[%clk 0:00:35]} 66. Ne4 {[%clk 0:00:03]}  f5 {[%clk 0:00:34]} 0-1


[Site "https://www.chess.com"]

[Event "Titled Tuesday Blitz December 7 2021"]
[White "Perrine, Dalton"]
[Black "Solovchuk, Oleksiy"]
[WhiteFideId "2048434"]
[BlackFideId "14115220"]
[WhiteElo "2434"]
[BlackElo "2295"]
[Result "1-0"]
[Round "04"]
[TimeControl "180+1"]
[Date "2021.12.07"]
[WhiteClock "0:00:07"]
[BlackClock "0:00:12"]

1. e4 {[%clk 0:03:00]}  e5 {[%clk 0:02:43]} 2. Nf3 {[%clk 0:03:00]}  Nc6 {[%clk 0:02:39]} 3. Bc4 {[%clk 0:03:01]}  Bc5 {[%clk 0:02:38]} 4. c3 {[%clk 0:03:00]}  Nf6 {[%clk 0:02:37]} 5. d3 {[%clk 0:03:01]}  O-O {[%clk 0:02:34]} 6. O-O {[%clk 0:03:01]}  d6 {[%clk 0:02:30]} 7. a4 {[%clk 0:02:57]}  a6 {[%clk 0:02:28]} 8. h3 {[%clk 0:02:28]}  Ne7 {[%clk 0:02:27]} 9. d4 {[%clk 0:02:23]}  exd4 {[%clk 0:02:22]} 10. cxd4 {[%clk 0:02:24]}  d5 {[%clk 0:02:22]} 11. dxc5 {[%clk 0:02:11]}  dxc4 {[%clk 0:02:20]} 12. Qe2 {[%clk 0:02:09]}  Qd3 {[%clk 0:02:20]} 13. Re1 {[%clk 0:02:09]}  Nc6 {[%clk 0:02:14]} 14. Bf4 {[%clk 0:01:20]}  Re8 {[%clk 0:02:09]} 15. Nc3 {[%clk 0:01:09]}  Nb4 {[%clk 0:01:50]} 16. Rad1 {[%clk 0:00:48]}  Qxe2 {[%clk 0:01:45]} 17. Rxe2 {[%clk 0:00:49]}  Nd3 {[%clk 0:01:39]} 18. Bxc7 {[%clk 0:00:45]}  Nxc5 {[%clk 0:01:05]} 19. e5 {[%clk 0:00:41]}  Nfd7 {[%clk 0:01:05]} 20. Rd4 {[%clk 0:00:32]}  b5 {[%clk 0:00:48]} 21. axb5 {[%clk 0:00:33]}  axb5 {[%clk 0:00:48]} 22. Nxb5 {[%clk 0:00:33]}  Ba6 {[%clk 0:00:49]} 23. Nc3 {[%clk 0:00:24]}  Rac8 {[%clk 0:00:38]} 24. Bd6 {[%clk 0:00:20]}  Nb3 {[%clk 0:00:38]} 25. Rd1 {[%clk 0:00:20]}  Bb7 {[%clk 0:00:36]} 26. Nd4 {[%clk 0:00:19]}  Nbc5 {[%clk 0:00:31]} 27. Ndb5 {[%clk 0:00:16]}  Nd3 {[%clk 0:00:30]} 28. Nc7 {[%clk 0:00:14]}  Red8 {[%clk 0:00:29]} 29. Be7 {[%clk 0:00:11]}  Rxc7 {[%clk 0:00:23]} 30. Bxd8 {[%clk 0:00:11]}  Rc8 {[%clk 0:00:23]} 31. Be7 {[%clk 0:00:12]}  N7c5 {[%clk 0:00:24]} 32. Bxc5 {[%clk 0:00:12]}  Nxc5 {[%clk 0:00:25]} 33. Rd4 {[%clk 0:00:09]}  Nb3 {[%clk 0:00:24]} 34. Rd7 {[%clk 0:00:07]}  Bc6 {[%clk 0:00:25]} 35. Rd6 {[%clk 0:00:07]}  Nc5 {[%clk 0:00:24]} 36. f3 {[%clk 0:00:05]}  h6 {[%clk 0:00:24]} 37. h4 {[%clk 0:00:05]}  Ne6 {[%clk 0:00:23]} 38. Red2 {[%clk 0:00:05]}  Kh7 {[%clk 0:00:23]} 39. Nd5 {[%clk 0:00:05]}  Ba4 {[%clk 0:00:21]} 40. Ne7 {[%clk 0:00:05]}  Rb8 {[%clk 0:00:21]} 41. Nf5 {[%clk 0:00:05]}  Kg6 {[%clk 0:00:16]} 42. Ne3 {[%clk 0:00:05]}  Kh5 {[%clk 0:00:16]} 43. g3 {[%clk 0:00:05]}  c3 {[%clk 0:00:14]} 44. bxc3 {[%clk 0:00:05]}  Rb1+ {[%clk 0:00:15]} 45. Kf2 {[%clk 0:00:04]}  Rb3 {[%clk 0:00:16]} 46. Ng2 {[%clk 0:00:04]}  Rxc3 {[%clk 0:00:16]} 47. g4+ {[%clk 0:00:05]}  Kg6 {[%clk 0:00:15]} 48. R6d3 {[%clk 0:00:06]}  Rc4 {[%clk 0:00:15]} 49. Kg3 {[%clk 0:00:06]}  h5 {[%clk 0:00:15]} 50. Rd6 {[%clk 0:00:05]}  hxg4 {[%clk 0:00:14]} 51. fxg4 {[%clk 0:00:06]}  Rc3+ {[%clk 0:00:14]} 52. R2d3 {[%clk 0:00:07]}  Rc1 {[%clk 0:00:14]} 53. Nf4+ {[%clk 0:00:07]}  Kh7 {[%clk 0:00:14]} 54. Nxe6 {[%clk 0:00:08]}  fxe6 {[%clk 0:00:15]} 55. Rxe6 {[%clk 0:00:08]}  Bc2 {[%clk 0:00:16]} 56. Rc3 {[%clk 0:00:08]}  Rg1+ {[%clk 0:00:17]} 57. Kf2 {[%clk 0:00:08]}  Rh1 {[%clk 0:00:16]} 58. Rec6 {[%clk 0:00:08]}  Be4 {[%clk 0:00:15]} 59. R6c4 {[%clk 0:00:08]}  Bd5 {[%clk 0:00:14]} 60. Rd4 {[%clk 0:00:08]}  Be6 {[%clk 0:00:14]} 61. Kg3 {[%clk 0:00:08]}  Kg6 {[%clk 0:00:14]} 62. Rd6 {[%clk 0:00:07]}  Kf7 {[%clk 0:00:13]} 63. Rc7+ {[%clk 0:00:07]}  Kg8 {[%clk 0:00:12]} 64. Rxe6 {[%clk 0:00:07]} 1-0


[Site "https://www.chess.com"]